[Event "Reykjavik Open 2024"]
[Site "Reykjavik"]
[Date "2024.03.18"]
[Round "6.27"]
[White "Dauner, Benedikt"]
[Black "Gortemaker, Lucas"]
[Result "1-0"]
[ECO "B12"]
[WhiteElo "2366"]
[BlackElo "2032"]
[Annotator "TA"]
[PlyCount "81"]
[EventDate "2024.03.12"]
[EventCountry "ISL"]
[SourceTitle "playchess.com"]
[Source "ChessBase"]
[SourceQuality "1"]
[TimeControl "40/5400+30:1800+30"]

{[%evp 10,81,34,6,50,45,62,37,48,40,42,47,80,67,73,69,87,76,108,95,102,89,123,104,118,119,145,129,149,110,187,183,189,191,275,223,328,274,288,283,406,304,343,339,358,363,352,345,489,357,416,429,402,379,546,428,961,861,859,842,1769,1755,1560,630,590,463,804,797,851,848,1391,1366,2301,2415]} 1. e4 {[%emt 0:00:47]} c6 {[%emt 0:00:53]} 2. d4 {[%emt 0:00:07]} d5 {[%emt 0:00:04]} 3. e5 {[%emt 0:00:06]} Bf5 {[%emt 0:00:07]} 4. h4 {[%emt 0:00:13][%cal Bh2h4,Bh4h5][%mdl 32]} h6 {[%emt 0:00:08]} 5. g4 {[%emt 0:02:49]} Bd7 {[%emt 0:00:24]} 6. h5 {[%emt 0:01:35] Schwarz hat schwache schwarze Felder} Qc8 {[%emt 0:00:44]} 7. Be2 {[%emt 0:02:24]} e6 {[%emt 0:01:38]} 8. Be3 {[%emt 0:02:22]} c5 {[%emt 0:01:30] Weiß steht etwas besser.} 9. c3 {[%emt 0:00:22]} Nc6 {[%emt 0:02:53]} 10. f4 {[%emt 0:05:54]} (10. dxc5 Nxe5 11. b4 a5 $17) 10... b6 {[%emt 0:05:04]} 11. Nf3 {[%emt 0:00:49]} Qb7 {[%emt 0:01:07]} 12. Nbd2 {[%emt 0:09:41]} Rc8 {[%emt 0:02:22]} 13. Kf2 {[%emt 0:03:19]} Nb8 {[%emt 0:12:02]} 14. Nf1 {[%emt 0:04:19]} Ne7 {[%emt 0:04:44]} 15. Ng3 {[%emt 0:00:49]} Nec6 {[%emt 0:01:52]} 16. g5 {[%emt 0:03:20] Weiß steht aktiver.} cxd4 {[%emt 0:01:48]} 17. cxd4 {[%emt 0:00:54]} Na5 {[%emt 0:09:39]} 18. b3 {[%emt 0:04:33]} Ba3 {[%emt 0:01:26]} 19. g6 {[%emt 0:00:55]} Qc7 {[%emt 0:06:34]} (19... Nbc6 $16 {ist eine bessere Verteidigung.}) 20. gxf7+ {[%emt 0:00:38]} Kxf7 {[%emt 0:00:06]} 21. Bd3 {[%emt 0:02:49] Wehrt Qc2+ ab} Rhf8 {[%emt 0:01:09]} (21... Nbc6 $142 22. Bc1 Be7) 22. Bh7 {[%emt 0:01:53]} Be8 {[%emt 0:09:48]} (22... Rh8 $142) 23. f5 $18 {[%emt 0:04:59]} Qc2+ {[%emt 0:01:02]} 24. Ne2 {[%emt 0:01:03][%cal Bg3e2,Be2f4,Bf4d5][%mdl 32] [#] Schwarz muss nun fxe6+ beachten.} Qxd1 {[%emt 0:00:53]} (24... exf5 {war nötig.} 25. Qxc2 Rxc2 26. Bxf5 Rc6) 25. Raxd1 {[%emt 0:00:13] Und fxe6+ würde nun gewinnen.} exf5 {[%emt 0:04:58]} 26. Nf4 {[%emt 0:00:23]} (26. Bxf5 Bd7) 26... Rc2+ {[%emt 0:03:07]} 27. Rd2 {[%emt 0:01:39]} Rxd2+ {[%emt 0:02:08]} 28. Bxd2 {[%emt 0:00:16]} (28. Nxd2 Nbc6 29. Nf3 (29. Nxd5 Nb4 $18) (29. Bxf5 Ke7 $14) 29... Ne7 $18) 28... Bd7 {[%emt 0:02:45]} (28... Na6 {war angesagt.} 29. Bxa5 (29. Nxd5 Bc6 $18) (29. Bxf5 Nc7 $18) 29... bxa5) 29. Nxd5 {[%emt 0:17:50]} (29. Bg6+ Kg8 30. Nxd5 (30. e6 Be8 $18) 30... Nbc6 $18) 29... Rd8 {[%emt 0:04:06]} 30. Nf4 {[%emt 0:00:43]} (30. Bg6+ Kg8 31. Bc1 Bf8) 30... Bc6 {[%emt 0:02:11]} 31. e6+ {[%emt 0:02:24]} (31. Bxf5 Bxf3 32. Kxf3 Nac6 $18) 31... Kf6 {[%emt 0:01:28]} (31... Ke7 {ist wohl besser.} 32. Rg1 (32. Bxf5 Rxd4 33. Ng6+ Ke8 $18) 32... Bxf3 33. Rxg7+ (33. Kxf3 Nac6 $18) 33... Kd6 34. Kxf3 Nac6) 32. Rg1 {[%emt 0:00:57] Weiß steht klar auf Gewinn.} Bf8 {[%emt 0:02:35]} (32... Bxf3 $142 33. Rg6+ (33. Kxf3 Nac6 $18) 33... Ke7 34. Rxg7+ (34. Kxf3 Nac6 $18) 34... Kd6 35. Kxf3 Nac6 36. Bxf5 Nxd4+ 37. Ke4 Nxf5 38. Kxf5 Nc6) 33. Rg6+ {[%emt 0:00:09]} Ke7 {[%emt 0:00:13]} 34. Bb4+ {[%emt 0:00:05]} Ke8 {[%emt 0:00:14] [#]} 35. e7 $1 {[%emt 0:02:23][%mdl 512]} Bxe7 {[%emt 0:00:09]} 36. Re6 {[%emt 0:00:05]} (36. Rxg7 $142 Kd7 37. Bxf5+ (37. Rxe7+ Kc8 $18) (37. Bxe7 Re8 $18) 37... Kc7 38. Ne6+ (38. Rxe7+ Bd7 $18) 38... Kc8 39. Nxd8+ (39. Bxe7 Rd5 $18) (39. Rxe7 Bd7 $18) 39... Bd7 40. Bxd7+ (40. Bxe7 Bxf5 41. Nf7 Bc2 $18) 40... Kxd8 41. Bxe7+ Kxd7 42. Bg5+ Ke6 43. Bxh6) 36... Rd7 {[%emt 0:01:02]} 37. d5 {[%emt 0:00:44] d6 ist eine echte Drohung.} Bxd5 {[%emt 0:03:23]} (37... Kd8 $142 38. dxc6 Naxc6) 38. Nxd5 {[%emt 0:00:54]} Nac6 {[%emt 0:01:31]} 39. Nxe7 {[%emt 0:11:26]} Nxb4 {[%emt 0:05:48]} 40. Nc6+ {[%emt 0:03:20]} Kf7 {[%emt 0:00:06]} 41. Nfd4 {[%emt 0:30:26] Gewichteter Fehlerwert: Weiß=0.43/Schwarz=0.50.  Fehler:       	---       	Schwarz=7     Ungenau:       	---       	Schwarz=3     OK:         	Weiß=12    	Schwarz=5} 1-0

[Event "Reykjavik Open 2024"]
[Site "Reykjavik"]
[Date "2024.03.18"]
[Round "6.28"]
[White "Fossheim, Yngve"]
[Black "Ruiz Buendia, Miguel"]
[Result "1/2-1/2"]
[ECO "E04"]
[WhiteElo "2090"]
[BlackElo "2366"]
[Annotator "RC"]
[PlyCount "72"]
[EventDate "2024.03.12"]
[EventCountry "ISL"]
[SourceTitle "playchess.com"]
[Source "ChessBase"]
[SourceQuality "1"]
[TimeControl "40/5400+30:1800+30"]

1. d4 {[%emt 0:00:03]} d5 {[%emt 0:01:34]} 2. c4 {[%emt 0:00:08]} c6 {[%emt 0:00:03]} 3. Nf3 {[%emt 0:00:16]} Nf6 {[%emt 0:00:08]} 4. g3 {[%emt 0:00:26]} dxc4 {[%emt 0:02:28]} 5. Bg2 {[%emt 0:00:36]} b5 {[%emt 0:03:44]} 6. O-O {[%emt 0:01:19]} e6 {[%emt 0:00:48]} 7. b3 {[%emt 0:00:56]} cxb3 {[%emt 0:01:47]} 8. Qxb3 {[%emt 0:00:18]} Bb7 {[%emt 0:03:56]} 9. Rd1 {[%emt 0:05:32]} Be7 {[%emt 0:01:58]} 10. Nc3 {[%emt 0:00:43]} O-O {[%emt 0:01:37]} 11. Ne5 {[%emt 0:01:40]} a6 {[%emt 0:05:34]} 12. Bg5 {[%emt 0:05:25]} Nfd7 {[%emt 0:11:55]} 13. Bxe7 {[%emt 0:10:57]} Qxe7 {[%emt 0:00:40]} 14. Nd3 {[%emt 0:00:49]} Ra7 {[%emt 0:13:34]} 15. Ne4 {[%emt 0:03:03]} c5 {[%emt 0:01:39]} 16. Nexc5 {[%emt 0:03:12]} Nxc5 {[%emt 0:01:28]} 17. dxc5 {[%emt 0:03:04]} Bxg2 {[%emt 0:01:14]} 18. Kxg2 {[%emt 0:00:02]} Nc6 {[%emt 0:03:30]} 19. Qc3 {[%emt 0:07:35]} Rc8 {[%emt 0:06:10]} 20. a4 {[%emt 0:02:36]} bxa4 {[%emt 0:03:12]} 21. Rxa4 {[%emt 0:03:03]} a5 {[%emt 0:00:48]} 22. Rc1 {[%emt 0:14:54]} Qd7 {[%emt 0:05:31]} 23. Kg1 {[%emt 0:02:17]} Rac7 {[%emt 0:04:31]} 24. Rc4 {[%emt 0:03:59]} Rb7 {[%emt 0:02:07]} 25. Ne5 {[%emt 0:00:56]} Nxe5 {[%emt 0:02:14]} 26. Qxe5 {[%emt 0:01:14]} Qc6 {[%emt 0:03:10]} 27. Rd4 {[%emt 0:03:19]} f6 {[%emt 0:01:27]} 28. Qe3 {[%emt 0:00:26]} Rd7 {[%emt 0:01:32]} 29. Rxd7 {[%emt 0:01:38]} Qxd7 {[%emt 0:00:04]} 30. Qc3 {[%emt 0:00:10]} Qb5 {[%emt 0:01:51]} 31. c6 {[%emt 0:00:35]} Rc7 {[%emt 0:01:17]} 32. Qd4 {[%emt 0:01:00]} Kf7 {[%emt 0:01:55]} 33. Qd6 {[%emt 0:03:50]} Qb6 {[%emt 0:00:50]} 34. Rc4 {[%emt 0:01:27]} a4 {[%emt 0:01:31]} 35. Rxa4 {[%emt 0:02:53]} Qxc6 {[%emt 0:01:00]} 36. Qxc6 {[%emt 0:00:07]} Rxc6 {[%emt 0:00:06]} 1/2-1/2

[Event "Reykjavik Open 2024"]
[Site "Reykjavik"]
[Date "2024.03.18"]
[Round "6.29"]
[White "Weigand, Anton"]
[Black "Moksh Amit Doshi"]
[Result "0-1"]
[ECO "B22"]
[WhiteElo "2036"]
[BlackElo "2353"]
[Annotator "TA"]
[PlyCount "66"]
[EventDate "2024.03.12"]
[EventCountry "ISL"]
[SourceTitle "playchess.com"]
[Source "ChessBase"]
[SourceQuality "1"]
[TimeControl "40/5400+30:1800+30"]

{[%evp 13,66,13,7,17,5,27,16,26,36,26,18,30,34,20,16,0,0,7,3,14,28,0,0,0,-13,-15,0,-63,-48,-84,-80,-72,-81,-84,0,-137,-56,-44,-42,-174,-113,-355,-420,-428,-404,-781,-766,-29995,-29982,-2840,-1385,-29987,-29988,-29988,-29989]} 1. e4 {[%emt 0:00:06]} c5 {[%emt 0:04:02]} 2. c3 {[%emt 0:00:39]} d5 {[%emt 0:00:31]} 3. exd5 {[%emt 0:00:08]} Qxd5 {[%emt 0:00:06]} 4. d4 {[%emt 0:00:08]} Nf6 {[%emt 0:00:06]} 5. Nf3 {[%emt 0:00:06]} e6 {[%emt 0:00:07]} 6. Na3 {[%emt 0:00:13][%cal Bb1a3,Ba3c4,Bc4e3][%mdl 32]} a6 {[%emt 0:00:07]} 7. Nc4 {[%emt 0:02:41]} Nbd7 {[%emt 0:00:06]} 8. Be2 {[%emt 0:02:31]} b5 {[%emt 0:00:12]} 9. Ne3 {[%emt 0:00:05]} Qc6 {[%emt 0:00:19]} 10. a4 {[%emt 0:00:37] axb5 is the strong threat. The position is equal.} Bb7 {[%emt 0:00:12]} 11. axb5 {[%emt 0:00:08]} axb5 {[%emt 0:00:06]} 12. Rxa8+ {[%emt 0:00:08]} Bxa8 {[%emt 0:00:05]} 13. dxc5 {[%emt 0:00:52]} Qxc5 {[%emt 0:04:58]} 14. O-O {[%emt 0:02:16]} Be7 {[%emt 0:00:06]} 15. Nc2 {[%emt 0:07:47]} O-O {[%emt 0:07:23]} 16. Nfd4 {[%emt 0:03:45]} Rb8 {[%emt 0:03:53]} 17. Be3 {[%emt 0:04:27][%cal Od4e6]} Qd5 {[%emt 0:06:06][%csl Ga8][%cal Rd5g2] [#]} 18. f3 {[%emt 0:07:47]} Ne5 {[%emt 0:14:43][%cal Bd7e5,Be5g6,Bg6f4][%mdl 32]} 19. Bf2 {[%emt 0:01:43]} Ng6 {[%emt 0:04:01]} 20. Qa1 {[%emt 0:21:13]} (20. Qc1 $11) 20... Nf4 $15 {[%emt 0:09:50] White must now prevent ...Qg5.} 21. Bxb5 {[%emt 0:01:30]} Qg5 {[%emt 0:08:35][%csl Gf4][%cal Rg5g2] [#] Black is more active.} 22. Bg3 {[%emt 0:06:43]} N6h5 {[%emt 0:01:23]} 23. Bxf4 {[%emt 0:11:19]} ({Don't go for} 23. Qa7 $2 Bd6 (23... Rxb5 24. Qxa8+ Bf8 25. Bxf4 $17) 24. Kf2 e5 $19) 23... Qxf4 {[%emt 0:05:36]} (23... Nxf4 $17 {[%csl Gf4][%cal Rg5g2]} 24. g3 e5) 24. Qe1 {[%emt 0:10:24]} (24. Rf2 $1 $11 {keeps the balance.}) 24... Bd6 {[%emt 0:02:51]} (24... Bc5 $17 25. Kh1 Bd6) 25. g3 {[%emt 0:01:49]} Qg5 $36 {[%emt 0:00:10][%cal Oe6e5][%mdl 3072] Hoping for ...e5! Black has compensation. Black fights for an advantage.} 26. c4 {[%emt 0:04:39]} (26. Bd3 $1 $15) 26... e5 {[%emt 0:04:38]} (26... Rd8 $19 {aiming for ...Bc5.} 27. Kg2 Be5) 27. Ne2 $2 {[%emt 0:00:53]} (27. Nc6 $17 Bxc6 28. Bxc6 Rxb2 29. Be4 Bc5+ 30. Kg2) 27... Bc5+ $19 {[%emt 0:01:32]} 28. Kg2 {[%emt 0:01:53]} e4 {[%emt 0:00:20]} 29. f4 {[%emt 0:01:51]} (29. Ned4 $142 exf3+ 30. Nxf3) 29... e3+ {[%emt 0:01:50]} 30. Kh3 {[%emt 0:00:18]} Qf5+ {[%emt 0:01:11]} 31. g4 {[%emt 0:00:35]} Qxc2 {[%emt 0:00:55]} (31... Qe4 $142 32. Rg1 Qf3+ (32... Nxf4+ $2 33. Nxf4 Qxf4 34. Qg3 $19) (32... Qxc2 $2 33. gxh5 Qf5+ 34. Kg3 $19) 33. Kh4 Be7+ (33... Nxf4 {leads to mate.} 34. Nxf4 Be7+ 35. g5 Rb6 36. Bc6 Rxc6 37. Rg4 Rh6+ 38. Nh5 g6 39. Nxe3 Rxh5#) 34. g5 Nxf4 35. Nxf4 Rb6 (35... Qxf4+ $2 36. Kh3 $19) 36. Bc6 Rxc6 (36... Qxf4+ $2 37. Kh3 $19) 37. Nh5 Rh6 (37... Rxc4+ {gets mated.} 38. Nd4 Rxd4+ 39. Nf4 Rxf4+ 40. Rg4 Qxg4#) 38. Rg4 g6 39. Nxe3 Rxh5#) 32. gxh5 {[%emt 0:00:09]} Qf5+ {[%emt 0:00:27]} 33. Kg3 {[%emt 0:00:49]} Qxh5 {[%emt 0:00:11] Weighted Error Value: White=0.87/Black=0.24 (precise) .  Loses game:     	White=1     	---        Mistake:       	White=4     	Black=3      Inaccurate:     	White=3     	---        OK:         	White=6     	Black=13     Best:        	White=2     	Black=3} 0-1

[Event "Reykjavik Open 2024"]
[Site "Reykjavik"]
[Date "2024.03.18"]
[Round "6.30"]
[White "Sachi Jain"]
[Black "Thorfinnsson, Bjorn"]
[Result "1/2-1/2"]
[ECO "C55"]
[WhiteElo "1992"]
[BlackElo "2353"]
[Annotator "TA"]
[PlyCount "85"]
[EventDate "2024.03.12"]
[EventCountry "ISL"]
[SourceTitle "playchess.com"]
[Source "ChessBase"]
[SourceQuality "1"]
[TimeControl "40/5400+30:1800+30"]

{[%evp 13,85,22,52,44,47,45,43,42,55,6,52,58,61,46,37,43,44,17,15,-62,-51,-55,-65,-66,-51,-40,-45,-50,-31,-72,-44,-50,-37,-80,-80,-80,-66,-71,-43,-68,-69,-77,-78,-82,-76,-83,-75,-76,-76,-83,-79,-78,-75,-73,-76,-83,-80,-82,0,0,0,0,0,-2,-2,-2,-2,-2,-2,-2,0,0,0,-2]} 1. e4 {[%emt 0:03:00]} e5 {[%emt 0:00:04]} 2. Nf3 {[%emt 0:00:28]} Nc6 {[%emt 0:00:06]} 3. Bc4 {[%emt 0:00:13]} Nf6 {[%emt 0:00:08]} 4. d3 {[%emt 0:00:16]} h6 {[%emt 0:00:25]} 5. O-O {[%emt 0:02:18]} d6 {[%emt 0:00:39]} 6. c3 {[%emt 0:00:45]} g6 {[%emt 0:00:37]} 7. Nbd2 {[%emt 0:02:18]} Bg7 {[%emt 0:00:08]} 8. b4 {[%emt 0:04:45]} O-O {[%emt 0:00:32]} 9. a4 {[%emt 0:01:52]} Kh7 {[%emt 0:09:12]} 10. Bb3 {[%emt 0:07:26] White is slightly better.} Bg4 {[%emt 0:01:51]} 11. b5 {[%emt 0:08:31]} (11. h3 $14 Bd7 12. Bb2) 11... Ne7 {[%emt 0:01:37]} (11... Na5 $11 {might be stronger.}) 12. h3 {[%emt 0:00:07]} Bd7 {[%emt 0:01:29]} 13. d4 {[%emt 0:00:44]} exd4 {[%emt 0:07:14]} 14. cxd4 {[%emt 0:09:46]} a6 {[%emt 0:01:09]} 15. e5 {[%emt 0:04:47]} Nfd5 {[%emt 0:01:35]} 16. Ba3 {[%emt 0:10:00]} (16. bxa6 $11 Rxa6 17. Ne4) 16... axb5 $15 {[%emt 0:00:43]} 17. exd6 {[%emt 0:00:43]} cxd6 {[%emt 0:00:26]} 18. Bxd6 {[%emt 0:02:49]} bxa4 {[%emt 0:04:04]} 19. Bxe7 {[%emt 0:05:37]} Nxe7 {[%emt 0:00:13]} 20. Bxa4 {[%emt 0:00:06]} Nc6 {[%emt 0:07:58]} 21. Nb3 {[%emt 0:05:37]} Be6 {[%emt 0:03:23] And now ...Bc4 would win.} 22. Bxc6 {[%emt 0:03:37]} Rxa1 {[%emt 0:00:26]} 23. Qxa1 {[%emt 0:00:33]} bxc6 {[%emt 0:00:05]} 24. Qc3 {[%emt 0:00:41]} Bd5 {[%emt 0:01:11]} 25. Nbd2 {[%emt 0:05:57]} Qd6 {[%emt 0:01:13]} 26. Rc1 {[%emt 0:03:04]} Re8 {[%emt 0:00:30]} 27. Re1 {[%emt 0:02:34]} Rxe1+ {[%emt 0:03:42]} 28. Nxe1 {[%emt 0:00:02]} Qe6 {[%emt 0:02:13]} 29. Nef3 {[%emt 0:02:07]} Qe2 {[%emt 0:00:00]} 30. Qe3 {[%emt 0:00:25]} Qd1+ {[%emt 0:00:00]} 31. Kh2 {[%emt 0:00:05]} Qc2 {[%emt 0:00:00]} 32. Ne1 {[%emt 0:01:43]} Qb2 {[%emt 0:00:00]} 33. Nef3 {[%emt 0:00:07]} Qc1 {[%emt 0:05:25]} 34. h4 {[%emt 0:02:42]} Bf8 {[%emt 0:00:29] A strong pair of Bishops.} 35. Qe5 {[%emt 0:02:36] Wards off Bd6} Qa3 {[%emt 0:00:45]} (35... Qc2 $17) 36. Ne4 $11 {[%emt 0:00:54] The position is equal.} Bxe4 {[%emt 0:04:12]} 37. Qxe4 {[%emt 0:00:02][%mdl 4096] Endgame. KQB-KQN} Qd6+ {[%emt 0:00:13]} 38. Kg1 {[%emt 0:01:39]} Qd5 {[%emt 0:02:45]} 39. Qxd5 {[%emt 0:01:55]} cxd5 {[%emt 0:00:49]} 40. Ne5 {[%emt 0:01:09]} Kg7 {[%emt 0:05:01]} 41. Ng4 {[%emt 0:32:02]} Be7 {[%emt 0:30:19]} 42. g3 {[%emt 0:00:13]} Bf6 {[%emt 0:00:12]} 43. Ne3 {[%emt 0:00:06] Weighted Error Value: White=0.12 (very precise) /Black=0.09 (flawless) .  Mistake:       	White=2     	Black=2      Inaccurate:     	White=3     	Black=2      OK:         	White=11    	Black=16     Best:        	White=2     	Black=2} 1/2-1/2

[Event "Reykjavik Open 2024"]
[Site "Reykjavik"]
[Date "2024.03.18"]
[Round "6.31"]
[White "Fanos, Haralambos"]
[Black "Cieslak, Patryk"]
[Result "1/2-1/2"]
[ECO "A28"]
[WhiteElo "1872"]
[BlackElo "2325"]
[Annotator "TA"]
[PlyCount "97"]
[EventDate "2024.03.12"]
[EventCountry "ISL"]
[SourceTitle "playchess.com"]
[Source "ChessBase"]
[SourceQuality "1"]
[TimeControl "40/5400+30:1800+30"]

{[%evp 10,96,19,18,23,-8,0,0,0,-5,-1,-2,13,11,20,8,15,11,9,9,9,13,35,35,51,0,71,64,61,72,84,64,53,9,10,10,51,10,76,54,143,144,256,258,254,231,237,241,292,267,230,252,366,338,743,665,1244,195,196,196,189,187,199,211,195,193,202,100,100,100,100,64,64,64,64,49,64,64,64,64,64,64,64,0,0,0,0,0,0]} 1. c4 {[%emt 0:09:14]} e5 {[%emt 0:00:01]} 2. Nc3 {[%emt 0:00:05]} Nf6 {[%emt 0:00:34][%cal Bg8f6,Bf6d5,Bd5c3][%mdl 32]} 3. Nf3 {[%emt 0:00:04]} Nc6 {[%emt 0:00:15]} 4. e3 {[%emt 0:00:04]} d5 {[%emt 0:00:22]} 5. cxd5 {[%emt 0:01:39]} Nxd5 {[%emt 0:00:03]} 6. Bb5 {[%emt 0:00:19]} Nxc3 {[%emt 0:00:05]} 7. dxc3 {[%emt 0:01:43]} Qxd1+ {[%emt 0:00:24]} 8. Kxd1 {[%emt 0:00:09]} e4 {[%emt 0:15:17]} 9. Nd4 {[%emt 0:02:23]} Bd7 {[%emt 0:05:42]} 10. Nxc6 {[%emt 0:01:08]} bxc6 {[%emt 0:00:04]} 11. Be2 {[%emt 0:00:23]} Bd6 {[%emt 0:01:17]} 12. Kc2 {[%emt 0:01:59]} Ke7 {[%emt 0:00:31]} 13. Bd2 {[%emt 0:03:40]} h5 {[%emt 0:07:19]} 14. h4 {[%emt 0:01:27]} Rh6 {[%emt 0:00:04]} 15. c4 {[%emt 0:02:52]} Rg6 {[%emt 0:02:57]} 16. g3 {[%emt 0:00:34]} Rh8 {[%emt 0:01:32]} 17. b4 {[%emt 0:02:39]} (17. Bc3 $14) 17... Bg4 {[%emt 0:06:27]} (17... Be5 $11 {keeps the balance.}) 18. Bxg4 $16 {[%emt 0:01:13]} hxg4 {[%emt 0:00:14]} 19. Bc3 {[%emt 0:01:32] Dodges Be5. And now c5 would win.} c5 {[%emt 0:07:26]} 20. b5 {[%emt 0:07:06]} Rh5 {[%emt 0:00:20]} 21. a4 {[%emt 0:01:55]} Rf5 {[%emt 0:04:23]} 22. Rhf1 {[%emt 0:01:32]} Kf8 {[%emt 0:10:07]} 23. a5 {[%emt 0:02:05]} Kg8 {[%emt 0:00:35]} (23... Be5 $11) 24. Kd2 {[%emt 0:02:11]} Rh6 {[%emt 0:04:44]} (24... Kf8 $14) 25. Ke2 {[%emt 0:01:49]} Rf3 {[%emt 0:04:34]} (25... Rfh5 $16 26. Rfd1 Re6) 26. Rfd1 $18 {[%emt 0:02:48]} Rf5 {[%emt 0:08:37]} 27. Ra2 {[%emt 0:02:07]} Re6 {[%emt 0:14:34] [#]} 28. Rad2 $1 {[%emt 0:01:19]} Re8 {[%emt 0:00:22] [#]} 29. b6 $1 {[%emt 0:03:49][%mdl 512]} axb6 {[%emt 0:00:03]} 30. axb6 {[%emt 0:00:14] aiming for b7.} Rb8 {[%emt 0:00:13]} (30... f6 $142 31. Rb1 Kf7) 31. Rb2 {[%emt 0:06:36]} Be5 $2 {[%emt 0:03:48]} (31... f6 32. Rdd2 Kh7) 32. Bxe5 {[%emt 0:01:55]} Rxe5 {[%emt 0:00:01][%mdl 4096] Endgame. KRR-KRR} 33. b7 {[%emt 0:00:12]} (33. bxc7 Rxb2+ 34. Kf1) 33... Re7 {[%emt 0:01:03]} 34. Ra1 {[%emt 0:04:54]} Kf8 {[%emt 0:00:43]} 35. Ra8 {[%emt 0:01:23]} Ree8 {[%emt 0:00:01]} 36. Ra5 {[%emt 0:00:34]} c6 {[%emt 0:01:14]} 37. Rxc5 {[%emt 0:02:33]} Re7 {[%emt 0:00:14]} 38. Rxc6 {[%emt 0:04:01]} (38. Rg5 $18 {and White stays clearly on top.}) 38... Rexb7 $16 {[%emt 0:00:02]} 39. Rxb7 {[%emt 0:00:23]} Rxb7 $18 {[%emt 0:00:01] KR-KR} 40. Rd6 {[%emt 0:00:07] Kd1 would now be deadly.} Ke7 {[%emt 0:01:07]} 41. Rd4 {[%emt 0:31:55]} f5 {[%emt 0:31:24]} 42. Kd1 {[%emt 0:03:55] Black must now prevent Kc2.} Rb2 {[%emt 0:00:00]} 43. Rd2 {[%emt 0:00:00]} Rb4 {[%emt 0:00:00]} 44. c5 {[%emt 0:00:00][%cal Bc4c5,Bc5c6][%mdl 32]} Rb5 {[%emt 0:00:00]} 45. c6 {[%emt 0:00:00]} Rc5 {[%emt 0:00:00]} 46. Rc2 {[%emt 0:00:00]} (46. Rd7+ $14 Kf6 47. Rc7 (47. c7 g6 $11)) 46... Rxc2 $1 $11 {[%emt 0:00:00] The position is equal.} 47. Kxc2 {[%emt 0:00:00] White wants to mate with Kc3.} Kd6 {[%emt 0:00:00]} 48. Kc3 {[%emt 0:00:00]} Kxc6 {[%emt 0:00:00]} 49. Kd4 {[%emt 0:00:00] Blacks defense is rewarded with a draw.   Weighted Error Value: White=0.22 (precise) /Black=0.19 (very precise) .  Mistake:       	White=3     	Black=6      Inaccurate:     	White=4     	Black=2      OK:         	White=16    	Black=10     Best:        	White=2     	Black=5      Strong:       	White=1     	Black=1} 1/2-1/2

[Event "Reykjavik Open 2024"]
[Site "Reykjavik"]
[Date "2024.03.18"]
[Round "6.32"]
[White "Magnusdottir, Veronika Steinunn"]
[Black "Karsten, Jan"]
[Result "0-1"]
[ECO "C55"]
[WhiteElo "1812"]
[BlackElo "2323"]
[Annotator "TA"]
[PlyCount "64"]
[EventDate "2024.03.12"]
[EventCountry "ISL"]
[SourceTitle "playchess.com"]
[Source "ChessBase"]
[SourceQuality "1"]
[TimeControl "40/5400+30:1800+30"]

{[%evp 10,64,35,24,23,24,39,-39,-29,-31,-39,-34,-30,-36,-33,-36,-38,-39,-31,-59,-64,-63,7,10,16,0,3,0,0,2,15,14,26,0,25,11,25,0,45,0,0,0,18,-12,-6,-8,-17,-140,-84,-152,-173,-29987,-29988,-29988,-29989,-29989,-29990]} 1. e4 {[%emt 0:02:50]} e5 {[%emt 0:03:11]} 2. Nf3 {[%emt 0:00:00]} Nc6 {[%emt 0:00:05]} 3. Bc4 {[%emt 0:00:00]} Nf6 {[%emt 0:00:05]} 4. d3 {[%emt 0:00:00]} h6 {[%emt 0:00:27]} 5. c3 {[%emt 0:00:00]} d6 {[%emt 0:01:27]} 6. O-O {[%emt 0:00:56]} g5 {[%emt 0:00:48][%cal Bg7g5,Bg5g4][%mdl 32]} 7. Re1 {[%emt 0:05:03]} Bg7 {[%emt 0:01:39]} 8. Nbd2 {[%emt 0:01:04]} ({Better is} 8. h3 $14) 8... g4 $1 $15 {[%emt 0:02:03] Black is slightly better.} 9. Nh4 {[%emt 0:04:46] [#]} Nxe4 $1 {[%emt 0:00:23]} 10. dxe4 {[%emt 0:14:35]} Qxh4 {[%emt 0:03:01]} 11. Nf1 {[%emt 0:02:56]} h5 {[%emt 0:05:21]} 12. Ne3 {[%emt 0:06:18]} Ne7 {[%emt 0:02:24]} 13. Bb5+ {[%emt 0:07:10]} Kf8 {[%emt 0:13:13]} (13... Bd7 {looks sharper.} 14. Nd5 Nxd5 15. Bxd7+ Kxd7 16. Qxd5 c6) 14. c4 {[%emt 0:08:57][%cal Oc4c5]} Be6 {[%emt 0:05:41]} 15. Nd5 {[%emt 0:06:15] And now g3 would win.} Bxd5 {[%emt 0:11:05]} (15... c6 $1 $15 16. Nc7 Rd8 17. Nxe6+ fxe6) 16. cxd5 $11 {[%emt 0:00:08]} c6 {[%emt 0:01:03]} 17. dxc6 {[%emt 0:00:54]} bxc6 {[%emt 0:00:04]} 18. Bc4 {[%emt 0:12:50]} Qf6 {[%emt 0:01:34]} 19. Bd2 {[%emt 0:06:24]} Bh6 {[%emt 0:03:23]} 20. Bb4 {[%emt 0:00:38][%mdl 1024] White has compensation. A strong pair of Bishops.} Rd8 {[%emt 0:00:34]} 21. Qa4 {[%emt 0:01:58][%cal Ob4a5]} (21. Qe2 $5) 21... Rd7 {[%emt 0:01:51]} 22. Rad1 {[%emt 0:03:11]} Kg7 {[%emt 0:00:26]} 23. Rd3 {[%emt 0:02:19]} Qg6 {[%emt 0:08:00]} 24. Red1 {[%emt 0:06:59]} Rhd8 {[%emt 0:09:17]} 25. Ba5 {[%emt 0:00:34]} Rc8 {[%emt 0:06:20]} (25... Qxe4 $5 26. Bxd8 Rxd8 $16) 26. Bb4 {[%emt 0:00:52] [#]} d5 {[%emt 0:05:16]} 27. exd5 {[%emt 0:02:07]} Nxd5 {[%emt 0:00:23]} 28. Bxd5 {[%emt 0:03:39]} (28. Bc3 $11 {keeps the balance.}) 28... Rxd5 $17 {[%emt 0:00:07]} 29. Rxd5 {[%emt 0:00:40]} ({White should play} 29. Qa6 Rcd8 30. Rxd5 Rxd5 31. Rf1) 29... cxd5 {[%emt 0:00:04]} 30. Rxd5 $2 {[%emt 0:00:49]} (30. Qxa7 $19 Qf5 31. Qa5) 30... Rc1+ {[%emt 0:00:34] Black mates.} 31. Rd1 {[%emt 0:00:05]} Qb1 $1 {[%emt 0:00:10][%csl LRb2,LRd1]} 32. g3 {[%emt 0:01:01]} Rxd1+ {[%emt 0:00:08] Weighted Error Value: White=0.42/Black=0.11 (very precise) .  Mistake:       	White=4     	Black=1      Inaccurate:     	White=4     	Black=2      OK:         	White=8     	Black=11     Strong:       	---       	Black=1      Brilliant:      	---       	Black=1} 0-1